[Event "Top 12 Féminin 2026"]
[Site "Asnières-sur-Seine, France"]
[Date "2026.05.13"]
[Round "1.11"]
[White "Sterpu, Constanta-Andreea"]
[Black "Richard, Emma"]
[Result "1/2-1/2"]
[TimeControl "1h30 / 40 moves + 30m + 30sec/move"]
[WhiteTitle "-"]
[BlackTitle "WFM"]
[WhiteFideId "-"]
[BlackFideId "-"]
[WhiteElo "1984"]
[BlackElo "2106"]

1. d4 {[%clk 01:30:57]} {[%emt 00:00:03]} Nf6 {[%clk 01:30:51]} {[%emt
00:00:09]} 2. Nf3 {[%clk 01:31:22]} {[%emt 00:00:05]} e6 {[%clk 01:31:11]}
{[%emt 00:00:10]} 3. e3 {[%clk 01:31:46]} {[%emt 00:00:05]} c5 {[%clk
01:31:34]} {[%emt 00:00:08]} 4. Bd3 {[%clk 01:31:55]} {[%emt 00:00:21]} Nc6
{[%clk 01:31:34]} {[%emt 00:00:31]} 5. O-O {[%clk 01:31:35]} {[%emt 00:00:49]}
d5 {[%clk 01:31:39]} {[%emt 00:00:25]} 6. b3 {[%clk 01:31:25]} {[%emt
00:00:40]} Bd6 {[%clk 01:31:10]} {[%emt 00:00:59]} 7. dxc5 {[%clk 01:31:27]}
{[%emt 00:00:27]} Bxc5 {[%clk 01:31:33]} {[%emt 00:00:07]} 8. Bb2 {[%clk
01:31:39]} {[%emt 00:00:18]} O-O {[%clk 01:29:34]} {[%emt 00:02:30]} 9. Nbd2
{[%clk 01:31:35]} {[%emt 00:00:34]} Qe7 {[%clk 01:20:33]} {[%emt 00:09:31]} 10.
a3 {[%clk 01:30:22]} {[%emt 00:01:44]} e5 {[%clk 01:10:18]} {[%emt 00:10:44]}
11. b4 {[%clk 01:30:26]} {[%emt 00:00:25]} Bd6 {[%clk 01:10:43]} {[%emt
00:00:05]} 12. c4 {[%clk 01:26:34]} {[%emt 00:04:22]} Rd8 {[%clk 00:55:18]}
{[%emt 00:15:56]} 13. cxd5 {[%clk 01:25:22]} {[%emt 00:01:42]} Nxd5 {[%clk
00:54:58]} {[%emt 00:00:49]} 14. Qc2 {[%clk 01:21:46]} {[%emt 00:04:06]} h6
{[%clk 00:49:42]} {[%emt 00:05:47]} 15. Be4 {[%clk 01:11:15]} {[%emt 00:11:00]}
Be6 {[%clk 00:33:24]} {[%emt 00:16:48]} 16. b5 {[%clk 01:06:53]} {[%emt
00:04:52]} Na5 {[%clk 00:28:14]} {[%emt 00:05:40]} 17. Nxe5 {[%clk 00:47:53]}
{[%emt 00:19:30]} Nf6 {[%clk 00:17:28]} {[%emt 00:11:16]} 18. Nef3 {[%clk
00:38:15]} {[%emt 00:10:07]} Rac8 {[%clk 00:15:48]} {[%emt 00:02:11]} 19. Qb1
{[%clk 00:32:35]} {[%emt 00:06:10]} Nc4 {[%clk 00:10:39]} {[%emt 00:05:40]} 20.
Bxf6 {[%clk 00:25:49]} {[%emt 00:07:15]} Qxf6 {[%clk 00:10:46]} {[%emt
00:00:23]} 21. Nxc4 {[%clk 00:24:59]} {[%emt 00:01:21]} Bxc4 {[%clk 00:10:49]}
{[%emt 00:00:28]} 22. Rc1 {[%clk 00:19:24]} {[%emt 00:06:04]} Qe7 {[%clk
00:09:14]} {[%emt 00:02:05]} 23. a4 {[%clk 00:10:56]} {[%emt 00:08:57]} Ba3
{[%clk 00:07:12]} {[%emt 00:02:33]} 24. Rc3 {[%clk 00:03:43]} {[%emt 00:07:43]}
Ba2 {[%clk 00:03:17]} {[%emt 00:04:26]} 25. Qc2 {[%clk 00:03:05]} {[%emt
00:01:07]} Rxc3 {[%clk 00:02:53]} {[%emt 00:00:54]} 26. Qxc3 {[%clk 00:02:23]}
{[%emt 00:01:12]} Qxe4 {[%clk 00:02:05]} {[%emt 00:01:19]} 27. Qxa3 {[%clk
00:02:42]} {[%emt 00:00:10]} Bb1 {[%clk 00:01:00]} {[%emt 00:01:35]} 28. Qc1
{[%clk 00:01:36]} {[%emt 00:01:36]} Bc2 {[%clk 00:01:26]} {[%emt 00:00:04]} 29.
Nd4 {[%clk 00:01:51]} {[%emt 00:00:14]} Bd3 {[%clk 00:01:27]} {[%emt 00:00:30]}
30. h3 {[%clk 00:02:09]} {[%emt 00:00:12]} Qe5 {[%clk 00:01:11]} {[%emt
00:00:46]} 31. Qc3 {[%clk 00:01:38]} {[%emt 00:01:01]} Be4 {[%clk 00:01:03]}
{[%emt 00:00:39]} 32. Rc1 {[%clk 00:01:36]} {[%emt 00:00:31]} Qf6 {[%clk
00:00:40]} {[%emt 00:00:52]} 33. Qc5 {[%clk 00:01:01]} {[%emt 00:01:05]} Rd5
{[%emt 00:00:56]} 34. Qc8+ {[%clk 00:01:01]} Rd8 {[%clk 00:01:01]} {[%emt
00:00:13]} 35. Qc7 {[%clk 00:01:12]} {[%emt 00:00:18]} Qg5 {[%clk 00:00:59]}
{[%emt 00:00:34]} 36. Qg3 {[%clk 00:01:02]} {[%emt 00:00:39]} Qxg3 {[%clk
00:00:47]} {[%emt 00:00:42]} 37. fxg3 {[%clk 00:01:27]} {[%emt 00:00:05]} Kf8
{[%clk 00:00:42]} {[%emt 00:00:36]} 38. Rc5 {[%clk 00:01:27]} {[%emt 00:00:29]}
Rd6 {[%clk 00:00:38]} {[%emt 00:00:35]} 39. g4 {[%clk 00:01:30]} {[%emt
00:00:28]} a6 {[%clk 00:00:46]} {[%emt 00:00:22]} 40. g5 {[%clk 00:01:17]}
{[%emt 00:00:43]} hxg5 {[%clk 00:00:55]} {[%emt 00:00:22]} 41. Rxg5 {[%clk
00:01:38]} {[%emt 00:00:08]} axb5 {[%clk 00:20:47]} {[%emt 00:10:38]} 42. axb5
{[%clk 00:25:59]} {[%emt 00:06:09]} b6 {[%clk 00:20:53]} {[%emt 00:00:25]} 43.
Rh5 {[%clk 00:25:20]} {[%emt 00:01:08]} Rf6 {[%clk 00:16:16]} {[%emt 00:05:08]}
44. g4 {[%clk 00:11:05]} {[%emt 00:14:45]} Bd3 {[%clk 00:12:29]} {[%emt
00:04:17]} 45. Kg2 {[%clk 00:06:18]} {[%emt 00:05:17]} Ke7 {[%clk 00:09:22]}
{[%emt 00:03:37]} 46. Rh8 {[%clk 00:05:42]} {[%emt 00:01:05]} Kd7 {[%clk
00:06:53]} {[%emt 00:03:00]} 47. Rb8 {[%clk 00:03:11]} {[%emt 00:03:01]} Kc7
{[%clk 00:07:08]} {[%emt 00:00:15]} 48. Rg8 {[%clk 00:02:36]} {[%emt 00:01:04]}
g6 {[%clk 00:06:58]} {[%emt 00:00:41]} 49. h4 {[%clk 00:02:35]} {[%emt
00:00:31]} Rf1 {[%clk 00:04:56]} {[%emt 00:02:32]} 50. Rg7 {[%clk 00:02:03]}
{[%emt 00:01:01]} Kd6 {[%clk 00:04:51]} {[%emt 00:00:34]} 51. h5 {[%clk
00:01:45]} {[%emt 00:00:48]} gxh5 {[%clk 00:04:47]} {[%emt 00:00:35]} 52. gxh5
{[%clk 00:02:06]} {[%emt 00:00:09]} Rf6 {[%clk 00:02:46]} {[%emt 00:02:31]} 53.
Kg3 {[%clk 00:02:08]} {[%emt 00:00:28]} Rf1 {[%clk 00:01:53]} {[%emt 00:01:24]}
54. Kh4 {[%clk 00:01:33]} {[%emt 00:01:04]} Ke5 {[%clk 00:01:03]} {[%emt
00:01:20]} 55. Rg4 {[%clk 00:01:19]} {[%emt 00:00:44]} f6 {[%clk 00:00:39]}
{[%emt 00:00:54]} 56. Nc6+ {[%clk 00:01:30]} {[%emt 00:00:19]} Kf5 {[%clk
00:01:06]} {[%emt 00:00:03]} 57. Ne7+ {[%clk 00:01:21]} {[%emt 00:00:35]} Ke6
{[%clk 00:01:23]} {[%emt 00:00:17]} 58. Ng6 {[%clk 00:01:30]} {[%emt 00:00:20]}
Rh1+ {[%clk 00:01:29]} {[%emt 00:00:25]} 59. Kg3 {[%clk 00:01:53]} {[%emt
00:00:07]} Rg1+ {[%clk 00:01:49]} {[%emt 00:00:11]} 60. Kh4 {[%clk 00:00:51]}
{[%emt 00:01:31]} Rh1+ {[%clk 00:02:07]} {[%emt 00:00:11]} 61. Kg3 {[%clk
00:01:14]} {[%emt 00:00:08]} Rg1+ {[%clk 00:02:22]} {[%emt 00:00:15]} 62. Kf4
{[%clk 00:00:59]} {[%emt 00:00:45]} Rf1+ {[%clk 00:02:26]} {[%emt 00:00:26]} 63.
Kg3 {[%clk 00:01:18]} {[%emt 00:00:10]} Rg1+ {[%clk 00:02:51]} {[%emt
00:00:06]} 1/2-1/2

[Event "Top 12 Féminin 2026"]
[Site "Asnières-sur-Seine, France"]
[Date "2026.05.13"]
[Round "1.12"]
[White "Ciarletta, Iris"]
[Black "Milojevic-Daim, Lola-Shaina"]
[Result "1-0"]
[TimeControl "1h30 / 40 moves + 30m + 30sec/move"]
[WhiteTitle "-"]
[BlackTitle "-"]
[WhiteFideId "-"]
[BlackFideId "-"]
[WhiteElo "1901"]
[BlackElo "1950"]

1. d4 {[%clk 01:30:56]} {[%emt 00:00:03]} d5 {[%clk 01:30:50]} {[%emt
00:00:10]} 2. c4 {[%clk 01:31:01]} {[%emt 00:00:26]} c6 {[%clk 01:31:01]}
{[%emt 00:00:19]} 3. Nf3 {[%clk 01:31:12]} {[%emt 00:00:18]} Nf6 {[%clk
01:31:13]} {[%emt 00:00:18]} 4. Qc2 {[%clk 01:31:31]} {[%emt 00:00:11]} e6
{[%clk 01:28:51]} {[%emt 00:02:52]} 5. Nbd2 {[%clk 01:31:36]} {[%emt 00:00:24]}
Nbd7 {[%clk 01:24:57]} {[%emt 00:04:24]} 6. g3 {[%clk 01:29:49]} {[%emt
00:02:17]} Bd6 {[%clk 01:19:16]} {[%emt 00:06:11]} 7. Bg2 {[%clk 01:25:44]}
{[%emt 00:04:35]} O-O {[%clk 01:13:54]} {[%emt 00:05:51]} 8. O-O {[%clk
01:21:21]} {[%emt 00:04:54]} Re8 {[%clk 01:07:13]} {[%emt 00:07:10]} 9. b3
{[%clk 01:08:26]} {[%emt 00:13:26]} e5 {[%clk 00:59:35]} {[%emt 00:08:07]} 10.
cxd5 {[%clk 01:03:54]} {[%emt 00:05:02]} cxd5 {[%clk 00:55:21]} {[%emt
00:04:44]} 11. dxe5 {[%clk 01:02:26]} {[%emt 00:01:58]} Nxe5 {[%clk 00:54:41]}
{[%emt 00:01:10]} 12. Bb2 {[%clk 01:00:38]} {[%emt 00:02:19]} Bg4 {[%clk
00:49:19]} {[%emt 00:05:51]} 13. Nxe5 {[%clk 00:52:50]} {[%emt 00:08:17]} Bxe5
{[%clk 00:49:38]} {[%emt 00:00:12]} 14. Bxe5 {[%clk 00:52:53]} {[%emt
00:00:27]} Rxe5 {[%clk 00:49:47]} {[%emt 00:00:22]} 15. Nf3 {[%clk 00:51:19]}
{[%emt 00:02:04]} Re7 {[%clk 00:35:03]} {[%emt 00:15:14]} 16. Nd4 {[%clk
00:46:35]} {[%emt 00:05:13]} Rc8 {[%clk 00:28:09]} {[%emt 00:07:24]} 17. Qb2
{[%clk 00:43:37]} {[%emt 00:03:28]} Rec7 {[%clk 00:25:22]} {[%emt 00:03:18]} 18.
h3 {[%clk 00:39:39]} {[%emt 00:04:27]} Be6 {[%clk 00:21:22]} {[%emt 00:04:30]}
19. Rad1 {[%clk 00:37:05]} {[%emt 00:03:04]} Qe7 {[%clk 00:18:57]} {[%emt
00:02:55]} 20. e3 {[%clk 00:33:01]} {[%emt 00:04:34]} a6 {[%clk 00:17:07]}
{[%emt 00:02:21]} 21. Kh2 {[%clk 00:26:28]} {[%emt 00:07:03]} h6 {[%clk
00:14:12]} {[%emt 00:03:25]} 22. Qb1 {[%clk 00:21:01]} {[%emt 00:05:57]} Ne8
{[%clk 00:07:32]} {[%emt 00:07:09]} 23. Ne2 {[%clk 00:17:40]} {[%emt 00:03:52]}
Nf6 {[%clk 00:04:12]} {[%emt 00:03:51]} 24. Rd2 {[%clk 00:14:43]} {[%emt
00:03:27]} Rd8 {[%clk 00:02:42]} {[%emt 00:02:00]} 25. Rfd1 {[%clk 00:14:32]}
{[%emt 00:00:40]} Rcd7 {[%clk 00:02:17]} {[%emt 00:00:55]} 26. Rd4 {[%clk
00:11:34]} {[%emt 00:03:29]} b5 {[%clk 00:01:21]} {[%emt 00:01:27]} 27. Nf4
{[%clk 00:09:01]} {[%emt 00:03:02]} Rd6 {[%clk 00:01:15]} {[%emt 00:00:36]} 28.
Qd3 {[%clk 00:08:24]} {[%emt 00:01:07]} Qd7 {[%clk 00:01:36]} {[%emt 00:00:10]}
29. Qd2 {[%clk 00:07:31]} {[%emt 00:01:23]} g5 {[%clk 00:01:26]} {[%emt
00:00:40]} 30. Ne2 {[%clk 00:06:59]} {[%emt 00:01:01]} Bf5 {[%clk 00:00:56]}
{[%emt 00:01:01]} 31. Nc3 {[%clk 00:06:48]} {[%emt 00:00:41]} Be6 {[%clk
00:00:36]} {[%emt 00:00:50]} 32. e4 {[%clk 00:06:43]} {[%emt 00:00:35]} b4
{[%clk 00:00:40]} {[%emt 00:00:27]} 33. Na4 {[%clk 00:05:25]} {[%emt 00:01:47]}
Ne8 {[%clk 00:00:35]} {[%emt 00:00:35]} 34. e5 {[%clk 00:04:40]} {[%emt
00:01:15]} Rc6 {[%clk 00:00:49]} {[%emt 00:00:16]} 35. Bxd5 {[%clk 00:04:57]}
{[%emt 00:00:13]} Bxh3 {[%clk 00:00:34]} {[%emt 00:00:46]} 36. Bxc6 {[%clk
00:05:08]} {[%emt 00:00:18]} Qxc6 {[%clk 00:01:01]} {[%emt 00:00:04]} 37. Kxh3
{[%clk 00:05:25]} {[%emt 00:00:13]} 1-0

[Event "Top 12 Féminin 2026"]
[Site "Asnières-sur-Seine, France"]
[Date "2026.05.13"]
[Round "1.13"]
[White "Krasteva, Beloslava"]
[Black "Osmak, Yuliaa"]
[Result "0-1"]
[TimeControl "1h30 / 40 moves + 30m + 30sec/move"]
[WhiteTitle "WGM"]
[BlackTitle "IM"]
[WhiteFideId "-"]
[BlackFideId "14101602"]
[WhiteElo "2285"]
[BlackElo "2451"]

1. d4 {[%clk 01:30:55]} {[%emt 00:00:04]} Nf6 {[%clk 01:25:51]} {[%emt
00:05:09]} 2. c4 {[%clk 01:31:01]} {[%emt 00:00:25]} e6 {[%clk 01:26:17]}
{[%emt 00:00:04]} 3. Nc3 {[%clk 01:31:27]} {[%emt 00:00:03]} Bb4 {[%clk
01:26:37]} {[%emt 00:00:10]} 4. Qc2 {[%clk 01:31:48]} {[%emt 00:00:08]} O-O
{[%clk 01:26:50]} {[%emt 00:00:18]} 5. e4 {[%clk 01:32:02]} {[%emt 00:00:17]}
d6 {[%clk 01:23:43]} {[%emt 00:03:36]} 6. e5 {[%clk 01:31:53]} {[%emt
00:00:40]} dxe5 {[%clk 01:22:51]} {[%emt 00:01:21]} 7. dxe5 {[%clk 01:32:16]}
{[%emt 00:00:07]} Ng4 {[%clk 01:22:24]} {[%emt 00:00:56]} 8. Nf3 {[%clk
01:32:22]} {[%emt 00:00:24]} Nc6 {[%clk 01:21:16]} {[%emt 00:01:38]} 9. Bf4
{[%clk 01:32:32]} {[%emt 00:00:20]} Nd4 {[%clk 01:19:20]} {[%emt 00:02:26]} 10.
Qd2 {[%clk 01:32:18]} {[%emt 00:00:45]} f6 {[%clk 01:15:05]} {[%emt 00:04:45]}
11. O-O-O {[%clk 01:13:44]} {[%emt 00:19:04]} c5 {[%clk 01:12:36]} {[%emt
00:02:59]} 12. h3 {[%clk 00:58:03]} {[%emt 00:16:11]} fxe5 {[%clk 00:55:59]}
{[%emt 00:17:06]} 13. Nxe5 {[%clk 00:46:41]} {[%emt 00:11:51]} Nf6 {[%clk
00:46:47]} {[%emt 00:09:43]} 14. Bd3 {[%clk 00:41:59]} {[%emt 00:05:12]} b5
{[%clk 00:44:44]} {[%emt 00:02:34]} 15. cxb5 {[%clk 00:30:44]} {[%emt
00:11:44]} Nd5 {[%clk 00:34:56]} {[%emt 00:10:18]} 16. Bg5 {[%clk 00:29:13]}
{[%emt 00:02:02]} Qa5 {[%clk 00:26:24]} {[%emt 00:09:02]} 17. Nc4 {[%clk
00:28:08]} {[%emt 00:01:34]} Qc7 {[%clk 00:26:47]} {[%emt 00:00:07]} 18. Qe1
{[%clk 00:23:37]} {[%emt 00:05:02]} Bxc3 {[%clk 00:21:50]} {[%emt 00:05:26]} 19.
bxc3 {[%clk 00:23:58]} {[%emt 00:00:09]} Nxb5 {[%clk 00:22:06]} {[%emt
00:00:14]} 20. Bd2 {[%clk 00:21:04]} {[%emt 00:03:24]} Rb8 {[%clk 00:20:39]}
{[%emt 00:01:58]} 21. a4 {[%clk 00:13:43]} {[%emt 00:07:52]} Nd6 {[%clk
00:15:07]} {[%emt 00:06:01]} 22. Qe5 {[%clk 00:13:50]} {[%emt 00:00:23]} Ba6
{[%clk 00:05:38]} {[%emt 00:10:00]} 23. Qxe6+ {[%clk 00:07:15]} {[%emt
00:07:04]} Kh8 {[%clk 00:06:03]} {[%emt 00:00:05]} 24. Qxd5 {[%clk 00:05:50]}
{[%emt 00:01:55]} Bxc4 {[%clk 00:05:00]} {[%emt 00:01:33]} 25. Bxc4 {[%clk
00:06:08]} {[%emt 00:00:12]} Qb6 {[%clk 00:04:15]} {[%emt 00:01:15]} 26. Bb5
{[%clk 00:04:15]} {[%emt 00:02:23]} Nxb5 {[%clk 00:03:30]} {[%emt 00:01:15]} 27.
axb5 {[%clk 00:04:15]} {[%emt 00:00:30]} Qxb5 {[%clk 00:03:17]} {[%emt
00:00:43]} 28. Qa2 {[%clk 00:04:34]} {[%emt 00:00:11]} Rxf2 {[%clk 00:02:24]}
{[%emt 00:01:23]} 29. c4 {[%clk 00:03:48]} {[%emt 00:01:16]} Qb7 {[%clk
00:01:02]} {[%emt 00:01:51]} 30. Rhf1 {[%clk 00:02:34]} {[%emt 00:01:44]} Rxg2
{[%clk 00:00:36]} {[%emt 00:00:57]} 31. Rf4 {[%clk 00:01:33]} {[%emt 00:01:31]}
h6 {[%clk 00:00:33]} {[%emt 00:00:33]} 32. Rdf1 {[%clk 00:01:26]} {[%emt
00:00:37]} Qe7 {[%clk 00:00:38]} {[%emt 00:00:25]} 33. Qc2 {[%clk 00:00:35]}
{[%emt 00:01:21]} Rd8 {[%clk 00:00:40]} {[%emt 00:00:28]} 34. R4f2 {[%clk
00:00:47]} {[%emt 00:00:17]} Rxf2 {[%clk 00:00:36]} {[%emt 00:00:35]} 35. Rxf2
{[%clk 00:01:16]} {[%emt 00:00:01]} Qe5 {[%clk 00:00:42]} {[%emt 00:00:25]} 36.
Bc3 {[%clk 00:00:47]} {[%emt 00:00:59]} Qe3+ {[%clk 00:00:43]} {[%emt
00:00:27]} 37. Kb2 {[%clk 00:00:40]} {[%emt 00:00:38]} Rb8+ {[%clk 00:00:59]}
{[%emt 00:00:14]} 38. Ka1 {[%clk 00:00:45]} {[%emt 00:00:25]} Qxh3 {[%clk
00:00:33]} {[%emt 00:00:56]} 39. Rg2 {[%clk 00:00:37]} {[%emt 00:00:38]} Rb7
{[%clk 00:00:38]} {[%emt 00:00:25]} 40. Qd2 {[%clk 00:00:35]} {[%emt 00:00:32]}
Qh1+ {[%clk 00:00:45]} {[%emt 00:00:23]} 41. Qe1 {[%clk 00:00:35]} {[%emt
00:00:30]} Qxg2 {[%clk 00:00:54]} {[%emt 00:00:21]} 42. Qc1 {[%clk 00:00:33]}
{[%emt 00:00:31]} Qg6 {[%clk 00:01:10]} {[%emt 00:00:14]} 0-1

[Event "Top 12 Féminin 2026"]
[Site "Asnières-sur-Seine, France"]
[Date "2026.05.13"]
[Round "1.14"]
[White "Daulyte-Cornette, Deimante"]
[Black "Barbotte, Jeanne"]
[Result "1-0"]
[TimeControl "1h30 / 40 moves + 30m + 30sec/move"]
[WhiteTitle "IM"]
[BlackTitle "-"]
[WhiteFideId "-"]
[BlackFideId "-"]
[WhiteElo "2389"]
[BlackElo "1860"]

1. e4 {[%clk 01:30:57]} {[%emt 00:00:02]} c5 {[%clk 01:30:53]} {[%emt
00:00:08]} 2. Nf3 {[%clk 01:31:21]} {[%emt 00:00:06]} g6 {[%clk 01:31:15]}
{[%emt 00:00:08]} 3. Bc4 {[%clk 01:31:37]} {[%emt 00:00:13]} Bg7 {[%clk
01:31:34]} {[%emt 00:00:11]} 4. c3 {[%clk 01:31:43]} {[%emt 00:00:25]} Nc6
{[%clk 01:28:26]} {[%emt 00:03:39]} 5. d4 {[%clk 01:31:55]} {[%emt 00:00:19]}
cxd4 {[%clk 01:28:45]} {[%emt 00:00:10]} 6. cxd4 {[%clk 01:32:12]} {[%emt
00:00:13]} d6 {[%clk 01:26:43]} {[%emt 00:02:31]} 7. Nc3 {[%clk 01:32:21]}
{[%emt 00:00:20]} Nf6 {[%clk 01:25:36]} {[%emt 00:01:37]} 8. d5 {[%clk
01:30:25]} {[%emt 00:02:26]} Nb8 {[%clk 01:10:45]} {[%emt 00:15:21]} 9. h3
{[%clk 01:30:20]} {[%emt 00:00:35]} O-O {[%clk 01:10:37]} {[%emt 00:00:39]} 10.
O-O {[%clk 01:30:39]} {[%emt 00:00:10]} a5 {[%clk 01:06:19]} {[%emt 00:04:49]}
11. Re1 {[%clk 01:27:56]} {[%emt 00:03:12]} Na6 {[%clk 01:01:23]} {[%emt
00:05:26]} 12. Be3 {[%clk 01:15:37]} {[%emt 00:12:48]} Bd7 {[%clk 00:57:38]}
{[%emt 00:04:16]} 13. e5 {[%clk 01:12:50]} {[%emt 00:03:17]} dxe5 {[%clk
00:47:40]} {[%emt 00:10:28]} 14. Nxe5 {[%clk 01:12:10]} {[%emt 00:01:10]} Rc8
{[%clk 00:45:53]} {[%emt 00:02:17]} 15. d6 {[%clk 01:00:48]} {[%emt 00:11:52]}
Nb4 {[%clk 00:30:39]} {[%emt 00:15:45]} 16. Bb6 {[%clk 00:48:19]} {[%emt
00:12:59]} Qxb6 {[%clk 00:26:06]} {[%emt 00:05:02]} 17. dxe7 {[%clk 00:48:33]}
{[%emt 00:00:16]} Bf5 {[%clk 00:26:16]} {[%emt 00:00:21]} 18. exf8=Q+ {[%clk
00:48:04]} {[%emt 00:00:58]} Kxf8 {[%clk 00:26:36]} {[%emt 00:00:10]} 19. Bb3
{[%clk 00:42:36]} {[%emt 00:05:58]} Ne4 {[%clk 00:15:33]} {[%emt 00:11:34]} 20.
Rxe4 {[%clk 00:41:33]} {[%emt 00:01:33]} Rd8 {[%clk 00:14:56]} {[%emt
00:01:07]} 21. Qf3 {[%clk 00:41:07]} {[%emt 00:00:56]} 1-0

[Event "Top 12 Féminin 2026"]
[Site "Asnières-sur-Seine, France"]
[Date "2026.05.13"]
[Round "1.15"]
[White "Carnet, Anaelle"]
[Black "Schippke, Manon"]
[Result "0-1"]
[TimeControl "1h30 / 40 moves + 30m + 30sec/move"]
[WhiteTitle "-"]
[BlackTitle "WIM"]
[WhiteFideId "-"]
[BlackFideId "-"]
[WhiteElo "1786"]
[BlackElo "2311"]

1. e4 {[%clk 01:30:56]} {[%emt 00:00:02]} e6 {[%clk 01:30:57]} {[%emt
00:00:04]} 2. d4 {[%clk 01:31:18]} {[%emt 00:00:09]} d5 {[%clk 01:31:23]}
{[%emt 00:00:03]} 3. exd5 {[%clk 01:31:41]} {[%emt 00:00:08]} exd5 {[%clk
01:31:49]} {[%emt 00:00:04]} 4. Nf3 {[%clk 01:32:00]} {[%emt 00:00:11]} Nf6
{[%clk 01:31:54]} {[%emt 00:00:25]} 5. h3 {[%clk 01:32:08]} {[%emt 00:00:21]}
c5 {[%clk 01:28:01]} {[%emt 00:04:24]} 6. Bb5+ {[%clk 01:29:17]} {[%emt
00:03:21]} Nc6 {[%clk 01:28:27]} {[%emt 00:00:04]} 7. O-O {[%clk 01:29:01]}
{[%emt 00:00:45]} Be7 {[%clk 01:21:02]} {[%emt 00:07:56]} 8. Re1 {[%clk
01:25:46]} {[%emt 00:03:43]} O-O {[%clk 01:20:03]} {[%emt 00:01:27]} 9. Bf4
{[%clk 01:20:11]} {[%emt 00:06:07]} a6 {[%clk 01:16:00]} {[%emt 00:04:34]} 10.
Bf1 {[%clk 01:05:58]} {[%emt 00:14:42]} Bf5 {[%clk 01:09:03]} {[%emt 00:07:27]}
11. c3 {[%clk 01:00:34]} {[%emt 00:05:54]} Ne4 {[%clk 01:00:18]} {[%emt
00:09:17]} 12. Nbd2 {[%clk 00:55:05]} {[%emt 00:05:58]} Re8 {[%clk 00:59:36]}
{[%emt 00:01:13]} 13. Rc1 {[%clk 00:45:02]} {[%emt 00:10:32]} b5 {[%clk
00:52:29]} {[%emt 00:07:36]} 14. Ne5 {[%clk 00:33:25]} {[%emt 00:12:07]} Nxe5
{[%clk 00:51:51]} {[%emt 00:01:09]} 15. dxe5 {[%clk 00:32:48]} {[%emt
00:01:06]} Ng5 {[%clk 00:42:28]} {[%emt 00:09:54]} 16. Nf3 {[%clk 00:28:55]}
{[%emt 00:04:22]} Ne6 {[%clk 00:42:26]} {[%emt 00:00:32]} 17. Bg3 {[%clk
00:27:26]} {[%emt 00:01:59]} Bg6 {[%clk 00:34:01]} {[%emt 00:08:55]} 18. Qd2
{[%clk 00:20:18]} {[%emt 00:07:38]} Qb6 {[%clk 00:28:13]} {[%emt 00:06:18]} 19.
Rcd1 {[%clk 00:17:57]} {[%emt 00:02:52]} Red8 {[%clk 00:28:10]} {[%emt
00:00:33]} 20. Bh4 {[%clk 00:12:13]} {[%emt 00:06:13]} Bxh4 {[%clk 00:25:30]}
{[%emt 00:03:11]} 21. Nxh4 {[%clk 00:12:37]} {[%emt 00:00:06]} d4 {[%clk
00:25:59]} {[%emt 00:00:02]} 22. Nxg6 {[%clk 00:11:37]} {[%emt 00:01:29]} hxg6
{[%clk 00:26:20]} {[%emt 00:00:08]} 23. Be2 {[%clk 00:09:10]} {[%emt 00:02:57]}
d3 {[%clk 00:22:25]} {[%emt 00:04:26]} 24. Bf3 {[%clk 00:08:43]} {[%emt
00:00:57]} Rab8 {[%clk 00:22:43]} {[%emt 00:00:12]} 25. Qe3 {[%clk 00:05:06]}
{[%emt 00:04:06]} c4 {[%clk 00:22:56]} {[%emt 00:00:16]} 26. Qxb6 {[%clk
00:05:00]} {[%emt 00:00:38]} Rxb6 {[%clk 00:23:23]} {[%emt 00:00:04]} 27. g3
{[%clk 00:04:37]} {[%emt 00:00:52]} Nc5 {[%clk 00:21:42]} {[%emt 00:02:11]} 28.
Bg4 {[%clk 00:03:02]} {[%emt 00:02:03]} Kf8 {[%clk 00:19:52]} {[%emt 00:02:21]}
29. f4 {[%clk 00:02:58]} {[%emt 00:00:34]} Ke7 {[%clk 00:20:10]} {[%emt
00:00:11]} 30. Kf2 {[%clk 00:02:24]} {[%emt 00:01:04]} b4 {[%clk 00:19:38]}
{[%emt 00:01:02]} 31. cxb4 {[%clk 00:01:20]} {[%emt 00:01:35]} Rxb4 {[%clk
00:20:05]} {[%emt 00:00:03]} 32. Rd2 {[%clk 00:01:41]} {[%emt 00:00:08]} Na4
{[%clk 00:19:49]} {[%emt 00:00:46]} 33. Ke3 {[%clk 00:01:12]} {[%emt 00:00:59]}
Nxb2 {[%clk 00:18:44]} {[%emt 00:01:35]} 34. a3 {[%clk 00:00:53]} {[%emt
00:00:49]} Rb3 {[%clk 00:18:20]} {[%emt 00:00:54]} 35. Bf3 {[%clk 00:01:01]}
{[%emt 00:00:22]} c3 {[%clk 00:18:36]} {[%emt 00:00:15]} 36. Rh2 {[%clk
00:01:07]} {[%emt 00:00:23]} d2 {[%clk 00:19:00]} {[%emt 00:00:08]} 37. Reh1
{[%clk 00:01:12]} {[%emt 00:00:24]} c2+ {[%clk 00:19:17]} {[%emt 00:00:14]} 38.
Kf2 {[%clk 00:01:19]} {[%emt 00:00:23]} c1=Q {[%clk 00:19:34]} {[%emt
00:00:14]} 39. Rxc1 {[%clk 00:01:42]} {[%emt 00:00:07]} dxc1=Q {[%clk
00:19:53]} {[%emt 00:00:10]} 40. Be2 {[%clk 00:02:06]} {[%emt 00:00:06]} Nd3+
{[%clk 00:20:12]} {[%emt 00:00:12]} 41. Bxd3 {[%clk 00:02:24]} {[%emt
00:00:12]} Rdxd3 {[%clk 00:20:37]} {[%emt 00:00:04]} 42. Ke2 {[%clk 00:02:48]}
{[%emt 00:00:05]} Rd2# {[%clk 00:21:04]} {[%emt 00:00:04]} 0-1